fUSD/lending_fUSD_20260407
["ID","MTS","AMOUNT","RATE_DAILY","PERIOD"]
[419963241,1775562636606,-151.0,0.000158,2]
[419963242,1775562636615,-155.194924,0.000158,2]
[419963243,1775562636624,-151.0,0.000158,2]
[419963244,1775562636633,-151.0,0.000158,2]
[419963245,1775562636642,-151.0,0.000158,2]
[419963246,1775562636651,-151.0,0.000158,2]
[419963247,1775562636661,-151.0,0.000158,2]
[419963248,1775562636671,-151.0,0.000158,2]
[419963249,1775562636680,-151.0,0.000158,2]
[419963250,1775562636690,-151.0,0.000158,2]
[419963251,1775562636700,-151.0,0.000158,2]
[419963252,1775562636710,-151.0,0.000158,2]
[419963253,1775562636720,-151.0,0.000158,2]
[419963254,1775562636730,-151.0,0.000158,2]
[419963255,1775562636739,-151.0,0.000158,2]
[419963256,1775562636750,-151.0,0.000158,2]
[419963257,1775562636759,-151.0,0.000158,2]
[419963258,1775562636769,-151.0,0.000158,2]
[419963259,1775562636778,-151.0,0.000158,2]
[419963260,1775562636788,-156.744575,0.000158,2]
[419963261,1775562636798,-151.0,0.000158,2]
[419963262,1775562636807,-151.0,0.000158,2]
[419963263,1775562636818,-151.0,0.000158,2]
[419963264,1775562636827,-151.0,0.000158,2]
[419963265,1775562636836,-151.0,0.000158,2]
[419963266,1775562636846,-151.0,0.000158,2]
[419963267,1775562636856,-151.0,0.000158,2]
[419963268,1775562636866,-151.0,0.000158,2]
[419963269,1775562636875,-151.0,0.000158,2]
[419963270,1775562636886,-151.0,0.000158,2]
[419963271,1775562636895,-151.0,0.000158,2]
[419963272,1775562636905,-151.0,0.000158,2]
[419963273,1775562636915,-202.295169,0.000158,2]
[419963274,1775562636924,-165.72124712,0.000158,2]
[419963275,1775562636934,-291.74016,0.000158,2]
[419963276,1775562636943,-152.150639,0.000158,2]
[419963277,1775562636953,-152.517157,0.000158,2]
[419963278,1775562636964,-151.0,0.000158,2]
[419963279,1775562636974,-151.0,0.000158,2]
[419963280,1775562636984,-152.444408,0.000158,2]
[419963281,1775562636994,-151.0,0.000158,2]
[419963282,1775562637003,-151.356198,0.000158,2]
[419963283,1775562637013,-153.554168,0.000158,2]
[419963284,1775562637023,-151.0,0.000158,2]
[419963285,1775562637033,-151.0,0.000158,2]
[419963286,1775562637043,-151.0,0.000158,2]
[419963287,1775562637053,-151.0,0.000158,2]
[419963288,1775562637063,-151.0,0.000158,2]
[419963289,1775562637072,-151.0,0.000158,2]
[419963290,1775562637083,-151.0,0.000158,2]
[419963291,1775562637093,-151.0,0.000158,2]
[419963292,1775562637103,-151.0,0.000158,2]
[419963293,1775562637112,-151.0,0.000158,2]
[419963294,1775562637122,-151.0,0.000158,2]
[419963295,1775562637131,-327.095733,0.000158,2]
[419963296,1775562637140,-2000.0,0.000158,2]
[419963297,1775562637149,-1000.0,0.00015802,2]
[419963298,1775562637158,-199.9321737,0.00015817,2]
[419963299,1775562637167,-472.40987105,0.00015817,2]
[419963300,1775562637177,-5333.81286881,0.0001582,2]
[419963301,1775562637186,-1000.0,0.00015827,2]
[419963302,1775562637195,-498.49829733,0.00015833,2]
[419963303,1775562637204,-1600.0,0.00015834,2]
[419963304,1775562637214,-1000.0,0.00015846,2]
[419963305,1775562637224,-3615.358861,0.00015847,7]
[419963306,1775562637234,-5333.81286881,0.0001586,2]
[419963307,1775562637244,-1909.98,0.00015862,2]
[419963308,1775562637254,-498.49829733,0.00015867,2]
[419963309,1775562637263,-1283.835587,0.00015883,7]
[419963310,1775562637273,-2000.0,0.0001589,2]
[419963311,1775562637282,-4000.0,0.00015895,2]
[419963312,1775562637292,-500.0,0.00015899,2]
[419963313,1775562637301,-600.15879933,0.000159,2]
[419963314,1775562637311,-193.61265601,0.000159,3]
[419963315,1775562637321,-498.49829733,0.000159,2]
[419963316,1775562637330,-8689.34724346,0.000159,2]
[419963317,1775562637340,-198.98296621,0.000159,2]
[419963318,1775562637349,-6588.7954378,0.000159,2]
[419963319,1775562637358,-6990.04870275,0.000159,2]
[419963320,1775562637368,-731.05188185,0.000159,2]
[419963321,1775562637377,-2114.31655149,0.000159,2]
[419963322,1775562637387,-5333.81286881,0.000159,2]
[419963323,1775562637397,-5800.0,0.000159,2]
[419963324,1775562637406,-2354.42674309,0.000159,2]
[419963325,1775562637415,-2101.78609951,0.000159,2]
[419963326,1775562637427,-378.0633418,0.000159,2]
[419963327,1775562637436,-2000.0,0.000159,2]
[419963328,1775562637445,-677.990721,0.000159,2]
[419963329,1775562637454,-1000.0,0.00015913,2]
[419963330,1775562637463,-1000.0,0.00015913,2]
[419963331,1775562637472,-502.0,0.00015927,4]
[419963332,1775562637481,-152.0,0.0001595,9]
[419963333,1775562637491,-261.43588665,0.0001595,5]
[419963334,1775562637501,-314.13,0.00015956,2]
[419963335,1775562637511,-5000.0,0.0001596,2]
[419963336,1775562637520,-1000.0,0.00015966,2]
[419963337,1775562637531,-150.0,0.00015967,2]
[419963338,1775562637541,-1098.50735331,0.00015968,2]
[419963339,1775562637550,-1500.0,0.00015968,2]
[419963340,1775562637560,-1500.0,0.00015968,2]
[419963341,1775562637570,-1501.32745538,0.00015968,2]
[419963342,1775562637581,-1000.0,0.00015968,2]
[419963343,1775562637591,-1501.06711075,0.00015968,2]
[419963344,1775562637602,-500.0,0.00015973,2]
[419963345,1775562637612,-500.0,0.00015973,2]
[419963346,1775562637622,-500.93020088,0.00015973,2]
[419963347,1775562637631,-501.47777221,0.00015973,2]
[419963348,1775562637641,-165.94573115,0.00015973,2]
[419963349,1775562637651,-205.79821626,0.00015984,2]
[419963350,1775562637661,-3805.3359542,0.00015984,2]
[419963351,1775562637671,-173.48813104,0.00015984,2]
[419963352,1775562637681,-1174.80285273,0.00015984,2]
[419963353,1775562637691,-880.90320228,0.00015984,2]
[419963354,1775562637701,-500.0,0.00015998,2]
[419963355,1775562637711,-347.52385534,0.00015999,2]
[419963356,1775562637721,-150.0,0.00015999,2]
[419963357,1775562637731,-150.0,0.00015999,2]
[419963358,1775562637741,-150.0,0.00015999,2]
[419963359,1775562637751,-150.0,0.00015999,2]
[419963360,1775562637760,-150.0,0.00015999,2]
[419963361,1775562637770,-282.78753985,0.00015999,2]
[419963362,1775562637780,-500.0,0.00015999,2]
[419963363,1775562637790,-500.0,0.00015999,2]
[419963364,1775562637800,-605.49988517,0.00015999,2]
[419963365,1775562637810,-98066.07843475,0.00016,2]
[419963414,1775562640644,-327.095733,0.000158,2]
[419963415,1775562640654,-151.0,0.000158,2]
[419963416,1775562640663,-367.150082,0.000158,2]
[419963417,1775562640674,-327.095733,0.000158,2]
[419963418,1775562640683,-151.0,0.000158,2]
[419963419,1775562640693,-367.150082,0.000158,2]
[419963420,1775562640703,-327.095733,0.000158,2]
[419963421,1775562640713,-0.29288759,0.000158,2]
[419963422,1775562640732,-366.85719441,0.000158,2]
[419963423,1775562640742,-1045.0,0.000159,2]
[419963424,1775562640751,-251443.24118267,0.00016,2]
[419963425,1775562640763,-2438.15312271,0.00016,2]
[419963426,1775562640776,-1132.68254729,0.00016,2]
[419963427,1775562640788,-1860188.64787479,0.00016,2]
[419963428,1775562640799,-775.76640753,0.00016,2]
[419963429,1775562640811,-1330.53130087,0.00016,2]
[419963430,1775562640822,-968.82185213,0.00016,2]
[419963431,1775562640835,-47849.03429514,0.00016,2]
[419963432,1775562641568,-277.20627553,0.00015082,2]
[419963433,1775562641578,-367.150082,0.000158,2]
[419963434,1775562641587,-277.20627553,0.0001599,2]
[419963435,1775562641597,-277.20627553,0.0001599,2]
[419963436,1775562641606,-67201.21594596,0.00016,2]
[419963438,1775562642866,-2529.80891904,0.00013173,2]
[419963439,1775562642920,-673.3,0.00013173,2]
[419963440,1775562643034,-2818.89108096,0.00013173,2]
[419963441,1775562643045,-413.1,0.000137,2]
[419963442,1775562643055,-413.1,0.000137,2]
[419963443,1775562643066,-247.182825,0.000158,2]
[419963444,1775562643075,-212.85145956,0.00016,2]
[419963445,1775562643135,-1249.39935792,0.00012448,2]
[419963446,1775562643146,-21895.60064215,0.00016,2]
[419963447,1775562645702,-413.1,0.000137,2]
[419963448,1775562645713,-413.1,0.000137,2]
[419963449,1775562645723,-413.1,0.000137,2]
[419963450,1775562645732,-151.0,0.000158,2]
[419963451,1775562645742,-924.24644821,0.00016,2]
[419963452,1775562645900,-1370.12506374,0.00016,2]
[419963486,1775563538780,-150.0,0.00011526,2]
[419963493,1775563659472,5000.01,8e-05,2]
[419963526,1775563831833,-160.0,0.00012738,2]
[419963528,1775563831848,-250.0,0.00013,2]
[419963529,1775563831858,-502.0,0.000131,2]
[419963530,1775563831868,-228.63481586,0.00013157,2]
[419963531,1775563831878,-1200.0,0.00013171,2]
[419963532,1775563831888,-300.0,0.00013172,2]
[419963533,1775563831898,-300.0,0.00013172,2]
[419963535,1775563831908,-300.0,0.00013172,2]
[419963537,1775563831918,-150.0,0.00013173,2]
[419963539,1775563831929,-1046.0,0.00013173,2]
[419963540,1775563831939,-622.0,0.00013173,2]
[419963541,1775563831951,-1347.0,0.00013173,2]
[419963542,1775563831962,-1217.0,0.000133,2]
[419963543,1775563831972,-3772.0,0.000133,2]
[419963544,1775563831981,-150.0,0.00013946,2]
[419963545,1775563831991,-205.00212077,0.00013946,2]
[419963546,1775563832001,-300.0,0.00013946,2]
[419963547,1775563832011,-300.0,0.00013946,2]
[419963548,1775563832021,-300.0,0.00013946,2]
[419963549,1775563832032,-300.0,0.00013946,2]
[419963550,1775563832042,-356.43990232,0.00013946,2]
[419963551,1775563832051,-168.39496732,0.00013946,2]
[419963552,1775563832113,-471.336752,0.00013946,2]
[419963553,1775563832160,-805.848,0.00013946,2]
[419963554,1775563832173,-622.92577189,0.00013946,2]
[419963555,1775563832205,-431.49450879,0.00013946,2]
[419963556,1775563832217,-387.68480811,0.00013946,2]
[419963557,1775563832231,-496.2484482,0.00013946,2]
[419963558,1775563832287,-1616.06674369,0.00013946,2]
[419963559,1775563832297,-686.28736751,0.00013946,2]
[419963573,1775563838021,-1813.71263249,0.00013946,2]
[419963574,1775563838031,-2500.0,0.00013946,2]
[419963575,1775563838040,-2500.0,0.00013946,2]
[419963576,1775563838051,-300.0,0.00013946,2]
[419963577,1775563838060,-300.0,0.00013946,2]
[419963578,1775563838069,-300.0,0.00013946,2]
[419963579,1775563838078,-291.13293345,0.00013946,2]
[419963580,1775563838088,-500.0,0.00013946,2]
[419963581,1775563838098,-500.0,0.00013946,2]
[419963582,1775563838107,-500.0,0.00013946,2]
[419963583,1775563838117,-500.0,0.00013946,2]
[419963584,1775563838126,-500.0,0.00013946,2]
[419963585,1775563838135,-200.0,0.00013946,2]
[419963586,1775563838144,-200.0,0.00013946,2]
[419963587,1775563838154,-200.0,0.00013946,2]
[419963588,1775563838165,-200.0,0.00013946,2]
[419963589,1775563838174,-229.50139979,0.00013946,2]
[419963590,1775563838184,-250.0,0.00014025,2]
[419963591,1775563838193,-502.0,0.00014099,2]
[419963592,1775563838204,-150.0,0.00014313,2]
[419963593,1775563838213,-1910.87,0.00014313,2]
[419963594,1775563838223,-283.25,0.00014333,2]
[419963595,1775563838234,-500.0,0.00014356,2]
[419963596,1775563838245,-1300.0,0.00014356,2]
[419963597,1775563838255,-500.0,0.00014356,2]
[419963598,1775563838266,-420.0,0.00014443,2]
[419963599,1775563838278,-2000.0,0.00014446,2]
[419963600,1775563838288,-1600.0,0.0001458,2]
[419963601,1775563838298,-200.0,0.00014663,2]
[419963602,1775563838309,-32431.71760639,0.0001479,2]
[419963603,1775563838318,-499.126,0.00014864,2]
[419963604,1775563838328,-300.0,0.00015,2]
[419963605,1775563838338,-1045.0,0.00015,2]
[419963606,1775563838349,-774.0,0.00015,2]
[419963607,1775563838360,-800.0,0.00015068,2]
[419963608,1775563838369,-502.0,0.00015097,3]
[419963609,1775563838379,-150.0,0.000153,2]
[419963610,1775563838388,-2388.78339668,0.0001532,2]
[419963611,1775563838398,-1417.58303455,0.0001532,2]
[419963612,1775563838407,-500.0,0.00015326,2]
[419963613,1775563838417,-2000.0,0.00015493,2]
[419963614,1775563838426,-4000.0,0.00015507,2]
[419963615,1775563838436,-1761.67,0.00015684,2]
[419963617,1775563838445,-500.0,0.00015686,2]
[419963619,1775563838454,-500.0,0.00015686,2]
[419963621,1775563838463,-500.0,0.00015686,2]
[419963623,1775563838472,-500.0,0.00015686,2]
[419963625,1775563838482,-500.0,0.00015686,2]
[419963627,1775563838491,-500.0,0.00015686,2]
[419963629,1775563838500,-500.0,0.00015686,2]
[419963631,1775563838511,-500.0,0.00015686,2]
[419963633,1775563838521,-500.0,0.00015686,2]
[419963635,1775563838530,-500.0,0.00015686,2]
[419963636,1775563838539,-500.0,0.00015686,2]
[419963639,1775563838554,-500.0,0.00015686,2]
[419963641,1775563838563,-500.0,0.00015686,2]
[419963643,1775563838572,-500.0,0.00015686,2]
[419963646,1775563838590,-500.0,0.00015686,2]
[419963649,1775563838606,-500.0,0.00015686,2]
[419963651,1775563838621,-500.0,0.00015686,2]
[419963654,1775563838635,-500.0,0.00015686,2]
[419963656,1775563838650,-500.0,0.00015686,2]
[419963659,1775563838663,-500.0,0.00015686,2]
[419963661,1775563838677,-500.0,0.00015686,2]
[419963664,1775563838692,-500.0,0.00015686,2]
[419963666,1775563838706,-500.0,0.00015686,2]
[419963669,1775563838721,-500.0,0.00015686,2]
[419963671,1775563838736,-559.11711883,0.00015686,2]
[419963674,1775563838749,-500.0,0.00015686,2]
[419963676,1775563838762,-500.0,0.00015686,2]
[419963677,1775563838774,-500.0,0.00015686,2]
[419963678,1775563838785,-500.0,0.00015686,2]
[419963679,1775563838798,-55108.92311033,0.00015688,2]
[419963683,1775563838830,-550.34050169,0.00015688,2]
[419963686,1775563838845,-2698.688078,0.00015688,2]
[419963689,1775563838863,-2636.4579246,0.00015688,2]
[419963691,1775563838880,-5767.97959688,0.00015688,2]
[419963692,1775563838893,-2345.82972712,0.00015688,2]
[419963730,1775563843009,-292.13897608,0.000133,2]
[419963731,1775563843224,-2178.86102392,0.000133,2]
[419963732,1775563843239,-10813.93626138,0.00015688,2]
[419963733,1775563843252,-1001.0,0.00015688,2]
[419963734,1775563843266,-6773.602,0.00015689,2]
[419963735,1775563843280,-5000.0,0.0001569,2]
[419963736,1775563843293,-3850.8849,0.000157,2]
[419963737,1775563843307,-500.0,0.00015726,2]
[419963738,1775563843321,-1300.0,0.00015726,2]
[419963739,1775563843334,-1093.22443818,0.00015737,2]
[419963740,1775563843348,-1093.22443814,0.0001576,2]
[419963741,1775563843362,-1093.22443814,0.00015784,2]
[419963742,1775563843375,-633.3464654,0.00015789,2]
[419963743,1775563843389,-335.01948412,0.00015789,2]
[419963744,1775563843402,-802.0,0.0001579,5]
[419963745,1775563843415,-31681.67655071,0.0001579,2]
[419963746,1775563844022,270.74746472,0.0001247,2]
[419963766,1775563846269,-1035.95027195,0.00013667,2]
[419963767,1775563846283,-918.0,0.00015784,2]
[419963768,1775563846297,-10001.53769168,0.0001579,2]
[419963769,1775563846315,-4507.27120642,0.0001579,2]
[419963770,1775563846336,-5638.67587386,0.0001579,2]
[419963791,1775564673029,-502.0,0.000131,2]
[419963792,1775564708240,500.0,0.00013,2]
[419963793,1775564727093,1286.9,6.921e-05,2]
[419963794,1775564727287,1286.9,7.285e-05,2]
[419963795,1775564727487,1286.9,7.649e-05,2]
[419963796,1775564727692,639.31,8.013e-05,2]
[419963797,1775564727714,647.59,8.013e-05,2]
[419963798,1775564727917,1286.9,8.378e-05,2]
[419963799,1775564728089,1286.9,8.742e-05,2]
[419963800,1775564728504,1286.9,9.106e-05,2]
[419963801,1775564728699,491.72,9.47e-05,2]
[419963802,1775564728723,795.18,9.47e-05,2]
[419963803,1775564728900,1286.9,9.835e-05,2]
[419963804,1775564729181,1286.9,0.00010199,2]
[419963805,1775564730844,1286.9,0.00010563,2]
[419963806,1775564730898,344.13,0.00010927,2]
[419963807,1775564730922,942.77,0.00010927,2]
[419963808,1775564730970,1286.9,0.00011292,2]
[419963809,1775564731067,1286.9,0.00011656,2]
[419963810,1775564731114,1286.9,0.0001202,2]
[419963811,1775564731189,196.54,0.00012384,2]
[419963812,1775564731212,1090.36,0.00012384,2]
[419963813,1775564731265,1286.9,0.00012749,2]
[419963814,1775564878749,502.0,0.000131,2]
[419963815,1775564898259,2120.75,0.00013,2]
[419963816,1775564898282,5000.01,0.00013,2]
[419963817,1775564898307,2676.24550384,0.00013,2]
[419963818,1775564900385,-1286.9,0.00013113,2]
[419963826,1775565031941,-160.0,0.00013434,2]
[419963827,1775565031951,-1286.9,0.00013477,2]
[419963828,1775565031961,-166.66,0.00013699,2]
[419963829,1775565031971,-300.0,0.00013725,2]
[419963830,1775565031981,-1264.0,0.00013726,2]
[419963831,1775565031992,-218.44,0.00013726,2]
[419963832,1775565032013,-510.0,0.00013726,2]
[419963833,1775565032047,-196.56,0.00013726,2]
[419963834,1775565032062,-302.94294632,0.00013726,2]
[419963835,1775565032075,-916.77305368,0.00013726,2]
[419963836,1775565032085,-694.11804371,0.00013726,2]
[419963837,1775565032209,-500.0,0.00013726,2]
[419963838,1775565032222,-756.18617286,0.00013726,2]
[419963848,1775565034111,-520.69578343,0.00013726,2]
[419963849,1775565034121,-415.0,0.00013726,2]
[419963850,1775565034130,-329.38,0.00013814,2]
[419963851,1775565034140,-3240.0,0.00013841,2]
[419963852,1775565034149,-1286.9,0.00013841,2]
[419963853,1775565034158,-1718.98,0.0001385,2]
[419963854,1775565034168,-166.66,0.00013865,2]
[419963855,1775565034178,-150.0,0.000139,2]
[419963856,1775565034187,-200.0,0.00013919,2]
[419963857,1775565034197,-166.66,0.00014031,2]
[419963858,1775565034207,-85.10669887,0.00014145,2]
[419963861,1775565038107,-416.89330113,0.00014145,2]
[419963862,1775565038117,-125.57278999,0.00014197,2]
[419963863,1775565038213,-41.08721001,0.00014197,2]
[419963864,1775565038223,-166.66,0.00014244,2]
[419963865,1775565038233,-233.90358351,0.00014255,2]
[419963866,1775565038244,-209.40437683,0.00014255,2]
[419963867,1775565038253,-200.0,0.00014255,2]
[419963868,1775565038262,-1235.18214925,0.00014255,2]
[419963869,1775565038272,-500.0,0.00014255,2]
[419963870,1775565038281,-209.40437683,0.00014255,2]
[419963871,1775565038291,-151.0,0.00014255,2]
[419963872,1775565038300,-174.61919141,0.00014255,2]
[419963873,1775565038309,-693.3919763,0.00014255,2]
[419963874,1775565038319,-743.50770149,0.00014255,2]
[419963875,1775565038327,-179.68549452,0.00014255,2]
[419963912,1775565046047,-258.03649157,0.00014043,2]
[419963913,1775565046207,-1141.6,0.00014043,2]
[419963914,1775565046369,-683.8,0.00014043,2]
[419963915,1775565046436,-1688.56350843,0.00014043,2]
[419963916,1775565046446,-110.57554551,0.00014255,2]
[419963917,1775565046455,-3858.23445033,0.00014265,2]
[419963923,1775565205307,-300.0,0.00013625,2]
[419963924,1775565205414,-6661.11,0.00013626,2]
[419963925,1775565205700,-911.7015,0.00013626,2]
[419963926,1775565205724,-8176.607,0.00013626,2]
[419963927,1775565206037,-160.0,0.00013626,2]
[419963928,1775565232784,250.0,0.00013,2]
[419963929,1775565237496,502.0,0.000131,2]
[419963930,1775565281015,2311.51,0.00011507,2]
[419963932,1775565567503,1600.0,0.00013213,2]
[419963933,1775565591328,502.0,0.000131,2]
[419963934,1775565723306,998.0,0.00013626,2]
[419963935,1775565752053,164.24,0.00013201,2]
[419963936,1775565844541,525.77758058,0.000135,2]
[419963937,1775565871109,150.0,0.00010543,2]
[419963938,1775565906393,283.25,0.00013196,2]
[419963939,1775565943178,502.0,0.000131,2]
[419963940,1775566008133,-615.0,0.00013837,2]
[419963941,1775566008155,-193.09977279,0.00013837,2]
[419963944,1775566232220,-201.04421825,0.00013737,2]
[419963945,1775566232230,-166.23,0.00013737,2]
[419963946,1775566232240,-300.0,0.00013787,2]
[419963947,1775566232249,-200.0,0.00013837,2]
[419963948,1775566232259,-0.34031142,0.00013837,2]
[419963949,1775566232271,-299.65968858,0.00013837,2]
[419963950,1775566232281,-500.0,0.00013837,2]
[419963951,1775566232291,-2500.0,0.00013837,2]
[419963952,1775566232301,-500.0,0.00013838,2]
[419963953,1775566232310,-500.0,0.00013838,2]
[419963954,1775566232319,-500.0,0.00013838,2]
[419963955,1775566232328,-300.0,0.00013838,2]
[419963956,1775566232338,-1696.00989665,0.00013838,2]
[419963957,1775566232350,-1580.241048,0.00013838,2]
[419963958,1775566232375,-3266.979465,0.00013838,2]
[419963959,1775566232388,-2083.4617637,0.00013838,2]
[419963960,1775566232404,-255.51004428,0.00013838,2]
[419963961,1775566232416,-427.65,0.00013838,2]
[419963962,1775566232428,-400.0,0.00013838,2]
[419963963,1775566232456,-11237.48396771,0.00013838,2]
[419963964,1775566232468,-4711.34272376,0.00013838,2]
[419963965,1775566232478,-2500.0,0.00013853,2]
[419963966,1775566232487,-642.41727624,0.00013853,2]
[419963967,1775566232499,-1097.89225197,0.00013853,2]
[419963968,1775566232510,-404.25233519,0.00013853,2]
[419963969,1775566232594,-355.4381366,0.00013853,2]
[419963970,1775566232604,-807.60927638,0.00013853,2]
[419963981,1775566238674,-387.85191081,0.00013853,2]
[419963982,1775566238686,-972.53647199,0.00013853,2]
[419963983,1775566238699,-332.00234082,0.00013853,2]
[419963984,1775566238709,-300.0,0.00013914,2]
[419963985,1775566238719,-2298.39824764,0.00013944,2]
[419963987,1775566238732,-2664.64708716,0.00013944,2]
[419963989,1775566238743,-2055.21048685,0.00013944,2]
[419964008,1775566241439,-481.30559702,0.00013944,2]
[419964009,1775566241459,-683.77,0.00013944,2]
[419964022,1775566243778,-89.78886364,0.00013944,2]
[419964026,1775566246529,-529.86,0.00013944,2]
[419964027,1775566246636,-2863.66600642,0.00013944,2]
[419964032,1775566275980,502.0,0.000131,2]
[419964033,1775566334997,725.0,0.000131,2]
[419964034,1775566361232,150.0,0.00013211,2]
[419964035,1775566641758,506.0,0.000131,2]
[419964036,1775566649099,-166.0,0.00013699,2]
[419964037,1775566649127,-200.0,0.00013699,2]
[419964038,1775566649155,-166.66,0.00013699,2]
[419964039,1775566738365,-174.63,0.00013699,2]
[419964040,1775566739107,154.54628048,0.00013699,2]
[419964041,1775566777689,180.0,0.00013699,2]
[419964043,1775566885304,-1200.0,0.00013703,2]
[419964044,1775566885335,-300.0,0.00013703,2]
[419964045,1775566885364,-2500.0,0.00013704,2]
[419964046,1775566885572,-2500.0,0.00013704,2]
[419964047,1775566885605,-2500.0,0.00013704,2]
[419964048,1775566885715,-500.0,0.0001371,2]
[419964049,1775566885745,-500.0,0.0001371,2]
[419964050,1775566885774,-500.0,0.0001371,2]
[419964051,1775566885803,-300.0,0.00013714,2]
[419964052,1775566885834,-300.0,0.00013714,2]
[419964053,1775566885867,-300.0,0.00013714,2]
[419964054,1775566886036,-4963.405263,0.00013738,2]
[419964055,1775566886051,-5086.548937,0.00013738,2]
[419964056,1775566886061,-1500.0,0.00013836,7]
[419964057,1775566886070,-166.66,0.00013836,2]
[419964058,1775566886080,-3246.801063,0.00013844,2]
[419964059,1775566886113,-10000.01,0.00013844,2]
[419964060,1775566886162,-10000.01,0.00013844,2]
[419964061,1775566886209,-4077.410037,0.00013844,2]
[419964062,1775566886220,-160.0,0.00013923,2]
[419964063,1775566886230,-151.0,0.00013941,2]
[419964064,1775566886240,-215.415209,0.00013941,2]
[419964065,1775566886250,-500.0,0.00013943,2]
[419964066,1775566886260,-500.0,0.00013943,2]
[419964067,1775566886271,-500.0,0.00013943,2]
[419964068,1775566886281,-500.0,0.00013943,2]
[419964069,1775566886291,-500.0,0.00013943,2]
[419964070,1775566886301,-500.0,0.00013943,2]
[419964071,1775566886312,-500.0,0.00013943,2]
[419964072,1775566886322,-500.0,0.00013943,2]
[419964073,1775566886333,-500.0,0.00013943,2]
[419964074,1775566886343,-500.0,0.00013943,2]
[419964075,1775566886353,-396.184754,0.00013943,2]
[419964076,1775566886415,-103.815246,0.00013943,2]
[419964077,1775566886451,-500.0,0.00013943,2]
[419964078,1775566886485,-500.0,0.00013943,2]
[419964079,1775566886518,-500.0,0.00013943,2]
[419964080,1775566886553,-556.26336852,0.00013943,2]
[419964081,1775566886582,-500.0,0.00013944,2]
[419964082,1775566886668,-4365.8944741,0.00013944,2]
[419964083,1775566886720,-1268.2210518,0.00013944,2]
[419964084,1775566886751,-151.0,0.00013944,2]
[419964085,1775566886782,-151.0,0.00013944,2]
[419964086,1775566886812,-151.0,0.00013944,2]
[419964087,1775566886842,-151.0,0.00013944,2]
[419964088,1775566886872,-151.0,0.00013944,2]
[419964089,1775566886903,-151.0,0.00013944,2]
[419964090,1775566886932,-151.0,0.00013944,2]
[419964091,1775566887483,-151.0,0.00013944,2]
[419964092,1775566887538,-151.0,0.00013944,2]
[419964093,1775566887568,-159.006193,0.00013944,2]
[419964094,1775566887596,-151.0,0.00013944,2]
[419964095,1775566887624,-151.0,0.00013944,2]
[419964096,1775566887653,-164.212319,0.00013944,2]
[419964097,1775566887681,-201.791375,0.00013944,2]
[419964098,1775566887708,-151.0,0.00013944,2]
[419964099,1775566887737,-925.539557,0.00013944,2]
[419964100,1775566887767,-151.0,0.00013944,2]
[419964101,1775566887796,-171.867964,0.00013944,2]
[419964102,1775566887889,-925.539557,0.00013944,2]
[419964103,1775566887919,-151.0,0.00013944,2]
[419964104,1775566887947,-925.539557,0.00013944,2]
[419964105,1775566887976,-925.539557,0.00013944,2]
[419964106,1775566888007,-151.0,0.00013944,2]
[419964107,1775566888037,-151.0,0.00013944,2]